[Event "GrandPrix_30.05"]
[Site "Chess.com"]
[Date "2020.05.30"]
[Round "4"]
[White "MaxVavulin"]
[Black "Lukianoo"]
[Result "0-1"]
[WhiteElo "2236"]
[BlackElo "2595"]
[TimeControl "600+2"]
[EndTime "9:51:02 PDT"]
[Termination "Lukianoo won by resignation"]

1. e4 {[%clk 0:10:01.9]} 1... c6 {[%clk 0:09:59.6]} 2. d4 {[%clk 0:09:53]} 2...
d5 {[%clk 0:10:00.2]} 3. Nc3 {[%clk 0:09:54.7]} 3... g6 {[%clk 0:09:59.7]} 4. e5
{[%clk 0:09:41.5]} 4... Bg7 {[%clk 0:09:57.7]} 5. f4 {[%clk 0:09:42.5]} 5... h5
{[%clk 0:09:56.7]} 6. Be3 {[%clk 0:09:36.6]} 6... Nh6 {[%clk 0:09:57.6]} 7. Nf3
{[%clk 0:09:29.7]} 7... Bg4 {[%clk 0:09:57.3]} 8. Be2 {[%clk 0:09:30.4]} 8...
Nf5 {[%clk 0:09:56.3]} 9. Bf2 {[%clk 0:09:31.1]} 9... e6 {[%clk 0:09:54.3]} 10.
Qd2 {[%clk 0:09:20.9]} 10... Nd7 {[%clk 0:09:51.5]} 11. Ng5 {[%clk 0:08:29.5]}
11... Bxe2 {[%clk 0:09:49.6]} 12. Nxe2 {[%clk 0:08:30.6]} 12... Rc8 {[%clk
0:09:48.5]} 13. g3 {[%clk 0:08:18.3]} 13... Bf8 {[%clk 0:09:30.4]} 14. Kf1
{[%clk 0:08:02.5]} 14... c5 {[%clk 0:09:27.5]} 15. c3 {[%clk 0:07:57.4]} 15...
Qb6 {[%clk 0:09:25.4]} 16. Kg2 {[%clk 0:07:49.3]} 16... Be7 {[%clk 0:09:25.5]}
17. Nf3 {[%clk 0:07:18.4]} 17... Qa6 {[%clk 0:09:05.6]} 18. h3 {[%clk
0:07:10.1]} 18... cxd4 {[%clk 0:09:02]} 19. cxd4 {[%clk 0:07:04.6]} 19... Bb4
{[%clk 0:08:50.2]} 20. Qd1 {[%clk 0:06:53.3]} 20... Nb6 {[%clk 0:08:45.2]} 21.
b3 {[%clk 0:06:04.4]} 21... Nd7 {[%clk 0:07:51.8]} 22. Rh2 {[%clk 0:05:34.3]}
22... Qa3 {[%clk 0:07:36]} 23. g4 {[%clk 0:03:40.7]} 23... Ne7 {[%clk 0:07:35]}
24. Bh4 {[%clk 0:02:55.4]} 24... Qb2 {[%clk 0:07:20.3]} 25. Kg3 {[%clk
0:02:56.6]} 25... Rc2 {[%clk 0:06:59.4]} 26. Rb1 {[%clk 0:02:38.8]} 26... Qxa2
{[%clk 0:06:59.4]} 27. Nc3 {[%clk 0:02:36.1]} 27... Rxh2 {[%clk 0:06:58.9]} 28.
Nxa2 {[%clk 0:02:37]} 28... Rxa2 {[%clk 0:07:00.8]} 29. Rc1 {[%clk 0:02:29.2]}
29... Nc6 {[%clk 0:06:59.9]} 30. Rc2 {[%clk 0:02:28]} 30... Ra3 {[%clk
0:06:49.4]} 31. Qd3 {[%clk 0:02:25.2]} 31... a6 {[%clk 0:06:43.8]} 32. Bg5
{[%clk 0:02:00]} 32... hxg4 {[%clk 0:06:37]} 33. hxg4 {[%clk 0:02:00.3]} 33...
Nb6 {[%clk 0:06:33.2]} 34. f5 {[%clk 0:01:52.3]} 34... gxf5 {[%clk 0:06:27.5]}
35. gxf5 {[%clk 0:01:53.3]} 35... Kd7 {[%clk 0:06:24.1]} 36. fxe6+ {[%clk
0:01:51.9]} 36... fxe6 {[%clk 0:06:26]} 37. Bf6 {[%clk 0:01:36.2]} 37... Rh1
{[%clk 0:06:11.5]} 38. Rg2 {[%clk 0:00:38]} 38... Nc8 {[%clk 0:05:56.3]} 39. Kf4
{[%clk 0:00:34]} 39... N8e7 {[%clk 0:05:49.1]} 40. Ng5 {[%clk 0:00:12.1]} 40...
Raa1 {[%clk 0:05:09.9]} 41. Nf3 {[%clk 0:00:05.6]} 41... Nf5 {[%clk 0:05:03.8]}
42. Rg5 {[%clk 0:00:04.8]} 42... Rad1 {[%clk 0:04:57]} 43. Qe2 {[%clk 0:00:05]}
43... Ncxd4 {[%clk 0:04:55.4]} 44. Nxd4 {[%clk 0:00:05.5]} 44... Rxd4+ {[%clk
0:04:54.9]} 45. Kf3 {[%clk 0:00:07]} 45... Rh3+ {[%clk 0:04:38.5]} 46. Kg2
{[%clk 0:00:07.7]} 46... Rdh4 {[%clk 0:04:28.9]} 47. Rxf5 {[%clk 0:00:04.3]}
47... Rh2+ {[%clk 0:04:29.6]} 48. Kf3 {[%clk 0:00:04]} 48... R4h3+ {[%clk
0:04:28.8]} 49. Kg4 {[%clk 0:00:04.7]} 49... exf5+ {[%clk 0:04:29.6]} 0-1

[Event "GrandPrix_30.05"]
[Site "Chess.com"]
[Date "2020.05.30"]
[Round "4"]
[White "Meri-Arabidze"]
[Black "LorisinoC"]
[Result "1-0"]
[WhiteElo "2213"]
[BlackElo "2167"]
[TimeControl "600+2"]
[EndTime "9:51:02 PDT"]
[Termination "Meri-Arabidze won by resignation"]

1. d4 {[%clk 0:10:01.9]} 1... d5 {[%clk 0:09:59.5]} 2. c4 {[%clk 0:10:02.5]}
2... e6 {[%clk 0:09:59.5]} 3. Nf3 {[%clk 0:10:03.1]} 3... Nf6 {[%clk 0:09:59.3]}
4. Nc3 {[%clk 0:10:04.2]} 4... c6 {[%clk 0:09:59.9]} 5. e3 {[%clk 0:10:04.1]}
5... Nbd7 {[%clk 0:09:58.6]} 6. Qc2 {[%clk 0:10:03.8]} 6... Bd6 {[%clk
0:09:45.2]} 7. Be2 {[%clk 0:10:04.5]} 7... O-O {[%clk 0:09:28.7]} 8. O-O {[%clk
0:10:04.7]} 8... dxc4 {[%clk 0:09:17.7]} 9. a4 {[%clk 0:10:04.8]} 9... h6 {[%clk
0:07:49.9]} 10. Bxc4 {[%clk 0:10:03.4]} 10... Qe7 {[%clk 0:07:36.7]} 11. Rd1
{[%clk 0:10:00.7]} 11... e5 {[%clk 0:07:36.7]} 12. Nh4 {[%clk 0:09:24]} 12...
Nb6 {[%clk 0:07:24.4]} 13. Ng6 {[%clk 0:08:30.5]} 13... Qc7 {[%clk 0:06:58.9]}
14. dxe5 {[%clk 0:08:28.7]} 14... Bxe5 {[%clk 0:06:30]} 15. Nxe5 {[%clk
0:08:13.3]} 15... Qxe5 {[%clk 0:06:29.6]} 16. Bd3 {[%clk 0:07:55.8]} 16... Bg4
{[%clk 0:05:48.1]} 17. f3 {[%clk 0:07:52.2]} 17... Be6 {[%clk 0:05:37]} 18. e4
{[%clk 0:07:50.3]} 18... Nc4 {[%clk 0:05:09.6]} 19. Qf2 {[%clk 0:06:55.8]} 19...
Rfd8 {[%clk 0:04:27.1]} 20. f4 {[%clk 0:06:34.7]} 20... Qh5 {[%clk 0:03:45.2]}
21. f5 {[%clk 0:05:54.7]} 21... Ne5 {[%clk 0:03:08.8]} 22. Be2 {[%clk
0:05:44.3]} 22... Rxd1+ {[%clk 0:03:07.8]} 23. Nxd1 {[%clk 0:05:30.3]} 23...
Nfg4 {[%clk 0:03:07.3]} 24. Qf4 {[%clk 0:05:10.5]} 24... Bc4 {[%clk 0:02:50.2]}
25. Bxc4 {[%clk 0:03:12.4]} 25... Nxc4 {[%clk 0:02:49.6]} 26. Nc3 {[%clk
0:03:14]} 26... Rd8 {[%clk 0:02:28.3]} 27. h3 {[%clk 0:03:13.5]} 27... Nge5
{[%clk 0:02:23.1]} 28. b3 {[%clk 0:02:30.4]} 28... Nd3 {[%clk 0:02:00.9]} 29.
Qc7 {[%clk 0:02:30.4]} 29... Rd4 {[%clk 0:01:27.4]} 30. bxc4 {[%clk 0:02:25.6]}
30... Rxc4 {[%clk 0:01:01.3]} 31. Qd8+ {[%clk 0:02:25.1]} 1-0

[Event "GrandPrix_30.05"]
[Site "Chess.com"]
[Date "2020.05.30"]
[Round "4"]
[White "Winawer81"]
[Black "ulkaf961"]
[Result "1-0"]
[WhiteElo "2161"]
[BlackElo "1981"]
[TimeControl "600+2"]
[EndTime "9:51:05 PDT"]
[Termination "Winawer81 won by resignation"]

1. e4 {[%clk 0:09:45.4]} 1... e6 {[%clk 0:10:00.4]} 2. d4 {[%clk 0:09:45.1]}
2... d5 {[%clk 0:10:01.3]} 3. Nd2 {[%clk 0:09:45.5]} 3... a6 {[%clk 0:10:00.7]}
4. Bd3 {[%clk 0:09:40.6]} 4... c5 {[%clk 0:10:01]} 5. dxc5 {[%clk 0:09:32.4]}
5... Nf6 {[%clk 0:09:51.7]} 6. exd5 {[%clk 0:09:21.6]} 6... exd5 {[%clk
0:09:51.9]} 7. Nb3 {[%clk 0:09:14.5]} 7... Be7 {[%clk 0:09:20.8]} 8. Nf3 {[%clk
0:09:12]} 8... Bg4 {[%clk 0:09:17.3]} 9. O-O {[%clk 0:09:02.9]} 9... O-O {[%clk
0:09:16.2]} 10. Bf4 {[%clk 0:08:53.6]} 10... Nc6 {[%clk 0:08:55.2]} 11. c3
{[%clk 0:08:32.9]} 11... Re8 {[%clk 0:08:52.2]} 12. Re1 {[%clk 0:08:15.3]} 12...
Qd7 {[%clk 0:08:44.1]} 13. Be2 {[%clk 0:08:02.8]} 13... Ne4 {[%clk 0:08:37.3]}
14. Be3 {[%clk 0:07:46.5]} 14... Rad8 {[%clk 0:07:06.1]} 15. Nfd2 {[%clk
0:06:46]} 15... Bxe2 {[%clk 0:07:04.2]} 16. Rxe2 {[%clk 0:06:45.5]} 16... Qf5
{[%clk 0:06:43.5]} 17. Nf3 {[%clk 0:06:27.4]} 17... g5 {[%clk 0:06:14.5]} 18.
Nfd4 {[%clk 0:06:17.7]} 18... Qg6 {[%clk 0:06:10]} 19. Nxc6 {[%clk 0:06:14.7]}
19... bxc6 {[%clk 0:06:09]} 20. Bd4 {[%clk 0:06:01.6]} 20... f5 {[%clk
0:05:53.3]} 21. f3 {[%clk 0:05:44.6]} 21... Nf6 {[%clk 0:05:50.5]} 22. Qd3
{[%clk 0:05:42.7]} 22... Nh5 {[%clk 0:05:42.9]} 23. g3 {[%clk 0:05:23.8]} 23...
Qf7 {[%clk 0:04:19]} 24. Rae1 {[%clk 0:05:16.4]} 24... Rd7 {[%clk 0:03:27.5]}
25. Qxa6 {[%clk 0:04:58]} 25... Rc7 {[%clk 0:02:48.8]} 26. Re6 {[%clk
0:04:15.2]} 26... Rf8 {[%clk 0:02:27.7]} 27. Qe2 {[%clk 0:03:50.6]} 27... Bf6
{[%clk 0:02:13.3]} 28. Bxf6 {[%clk 0:03:43.2]} 28... Nxf6 {[%clk 0:02:13.7]} 29.
Nd4 {[%clk 0:03:38]} 29... f4 {[%clk 0:01:26.4]} 30. g4 {[%clk 0:03:31.6]} 30...
Nxg4 {[%clk 0:01:14]} 31. fxg4 {[%clk 0:03:28.3]} 31... f3 {[%clk 0:01:14.5]}
32. Qf2 {[%clk 0:03:25.7]} 32... Qf4 {[%clk 0:01:12.7]} 33. h3 {[%clk
0:03:21.7]} 33... h5 {[%clk 0:01:09.1]} 34. Rg6+ {[%clk 0:03:04.4]} 34... Kh7
{[%clk 0:01:06.1]} 35. Ne6 {[%clk 0:02:50.6]} 1-0

[Event "GrandPrix_30.05"]
[Site "Chess.com"]
[Date "2020.05.30"]
[Round "4"]
[White "FCLitras"]
[Black "hypert"]
[Result "1-0"]
[WhiteElo "2083"]
[BlackElo "2146"]
[TimeControl "600+2"]
[EndTime "9:51:08 PDT"]
[Termination "FCLitras won on time"]

1. d4 {[%clk 0:10:01.9]} 1... d5 {[%clk 0:10:00.9]} 2. c4 {[%clk 0:10:02.3]}
2... e6 {[%clk 0:10:02.4]} 3. Nf3 {[%clk 0:10:02.9]} 3... c6 {[%clk 0:10:03.2]}
4. Qc2 {[%clk 0:09:50.9]} 4... dxc4 {[%clk 0:10:00.7]} 5. Qxc4 {[%clk
0:09:51.5]} 5... Nf6 {[%clk 0:10:01.8]} 6. g3 {[%clk 0:09:47.6]} 6... b5 {[%clk
0:10:02.7]} 7. Qc2 {[%clk 0:09:48.2]} 7... Bb7 {[%clk 0:10:03.9]} 8. Bg2 {[%clk
0:09:49.5]} 8... Nbd7 {[%clk 0:10:05.1]} 9. O-O {[%clk 0:09:50.5]} 9... a6
{[%clk 0:09:58.4]} 10. a4 {[%clk 0:09:41.3]} 10... Qb6 {[%clk 0:09:57.1]} 11.
Rd1 {[%clk 0:09:32.3]} 11... Rc8 {[%clk 0:09:56.2]} 12. Bg5 {[%clk 0:09:24.7]}
12... c5 {[%clk 0:09:49.4]} 13. axb5 {[%clk 0:09:24.9]} 13... axb5 {[%clk
0:09:49.7]} 14. Qd2 {[%clk 0:07:54.7]} 14... cxd4 {[%clk 0:08:27.7]} 15. Bxf6
{[%clk 0:07:30.8]} 15... Nxf6 {[%clk 0:08:14.8]} 16. Nxd4 {[%clk 0:07:31.7]}
16... Bxg2 {[%clk 0:08:01.2]} 17. Kxg2 {[%clk 0:07:33.6]} 17... Bc5 {[%clk
0:08:00.9]} 18. e3 {[%clk 0:07:12.5]} 18... h5 {[%clk 0:07:35.7]} 19. h4 {[%clk
0:06:53.2]} 19... O-O {[%clk 0:07:32.9]} 20. Nc3 {[%clk 0:06:45.9]} 20... Rfd8
{[%clk 0:06:32.9]} 21. Qe2 {[%clk 0:06:43.6]} 21... Bxd4 {[%clk 0:05:37.2]} 22.
exd4 {[%clk 0:06:42.8]} 22... Rxd4 {[%clk 0:05:17.1]} 23. Qxb5 {[%clk
0:06:29.3]} 23... Qxb5 {[%clk 0:04:56.6]} 24. Nxb5 {[%clk 0:06:31.2]} 24... Rxd1
{[%clk 0:04:57.9]} 25. Rxd1 {[%clk 0:06:31.4]} 25... Rb8 {[%clk 0:04:59.4]} 26.
Nd6 {[%clk 0:05:57]} 26... Rxb2 {[%clk 0:04:58.3]} 27. Rc1 {[%clk 0:05:57.7]}
27... Ng4 {[%clk 0:04:41.5]} 28. Rc8+ {[%clk 0:05:44.5]} 28... Kh7 {[%clk
0:04:41.7]} 29. Ne4 {[%clk 0:05:45.6]} 29... Kg6 {[%clk 0:03:59.6]} 30. Rd8
{[%clk 0:05:33.7]} 30... Kf5 {[%clk 0:03:37.1]} 31. Nd6+ {[%clk 0:05:22.8]}
31... Kf6 {[%clk 0:03:28.7]} 32. Ne4+ {[%clk 0:05:16.8]} 32... Ke5 {[%clk
0:03:29.2]} 33. Nd2 {[%clk 0:05:12.9]} 33... Ra2 {[%clk 0:03:18.6]} 34. Rd3
{[%clk 0:05:03.7]} 34... Kf6 {[%clk 0:03:09.2]} 35. Rf3+ {[%clk 0:04:29.6]}
35... Ke7 {[%clk 0:03:07.7]} 36. Nf1 {[%clk 0:04:15.2]} 36... e5 {[%clk
0:02:58.7]} 37. Ne3 {[%clk 0:04:05.4]} 37... g6 {[%clk 0:02:44.4]} 38. Nxg4
{[%clk 0:04:00.8]} 38... hxg4 {[%clk 0:02:46.3]} 39. Rb3 {[%clk 0:04:01.6]}
39... Ra6 {[%clk 0:02:26]} 40. Rb4 {[%clk 0:03:53.4]} 40... f5 {[%clk
0:02:26.1]} 41. Rc4 {[%clk 0:03:46.4]} 1-0

[Event "GrandPrix_30.05"]
[Site "Chess.com"]
[Date "2020.05.30"]
[Round "4"]
[White "ZEN-22"]
[Black "ehrenfeld"]
[Result "1-0"]
[WhiteElo "2214"]
[BlackElo "1966"]
[TimeControl "600+2"]
[EndTime "9:51:09 PDT"]
[Termination "ZEN-22 won on time"]

1. e4 {[%clk 0:10:01.9]} 1... e5 {[%clk 0:10:00.2]} 2. Nc3 {[%clk 0:10:01.5]}
2... Nf6 {[%clk 0:10:00.4]} 3. f4 {[%clk 0:10:02.2]} 3... d5 {[%clk 0:10:01.4]}
4. fxe5 {[%clk 0:10:02.5]} 4... Nxe4 {[%clk 0:10:01.8]} 5. Qf3 {[%clk
0:10:02.4]} 5... Nc6 {[%clk 0:10:01.6]} 6. Bb5 {[%clk 0:09:56.4]} 6... Nxc3
{[%clk 0:10:00.5]} 7. dxc3 {[%clk 0:09:54.8]} 7... Qh4+ {[%clk 0:10:01.9]} 8. g3
{[%clk 0:09:50.2]} 8... Qe4+ {[%clk 0:10:02.6]} 9. Qxe4 {[%clk 0:09:29.5]} 9...
dxe4 {[%clk 0:10:03.4]} 10. Bf4 {[%clk 0:09:30.3]} 10... Bd7 {[%clk 0:09:18.6]}
11. O-O-O {[%clk 0:09:27.4]} 11... O-O-O {[%clk 0:08:00.1]} 12. Bc4 {[%clk
0:09:25.1]} 12... Be6 {[%clk 0:06:40.3]} 13. Bxe6+ {[%clk 0:09:21.6]} 13... fxe6
{[%clk 0:06:41.2]} 14. Re1 {[%clk 0:09:22.2]} 14... Be7 {[%clk 0:06:33.4]} 15.
h4 {[%clk 0:09:17]} 15... e3 {[%clk 0:05:44.7]} 16. Rxe3 {[%clk 0:09:14]} 16...
Bc5 {[%clk 0:05:45]} 17. Re4 {[%clk 0:08:50.7]} 17... Bxg1 {[%clk 0:05:34.8]}
18. Rxg1 {[%clk 0:08:49.6]} 18... Rd5 {[%clk 0:05:31.4]} 19. Rd1 {[%clk
0:08:41.1]} 19... Rhd8 {[%clk 0:05:30.2]} 20. Rxd5 {[%clk 0:08:38.6]} 20... Rxd5
{[%clk 0:05:30.2]} 21. b3 {[%clk 0:08:29]} 21... Kd7 {[%clk 0:05:19.8]} 22. a4
{[%clk 0:08:16.9]} 22... Ke8 {[%clk 0:05:07.5]} 23. b4 {[%clk 0:07:58.8]} 23...
a6 {[%clk 0:05:05.4]} 24. Kb2 {[%clk 0:07:56.1]} 24... h5 {[%clk 0:05:01.8]} 25.
Kb3 {[%clk 0:07:49.7]} 25... Kf7 {[%clk 0:04:59.8]} 26. c4 {[%clk 0:07:43.8]}
26... Rd4 {[%clk 0:04:56.2]} 27. Re3 {[%clk 0:07:40.8]} 27... Kg6 {[%clk
0:04:46.4]} 28. c3 {[%clk 0:07:23.2]} 28... Rd1 {[%clk 0:04:38.2]} 29. c5 {[%clk
0:07:20.7]} 29... Ne7 {[%clk 0:04:34.9]} 30. b5 {[%clk 0:07:11.9]} 30... axb5
{[%clk 0:04:35]} 31. axb5 {[%clk 0:07:12]} 31... Kf5 {[%clk 0:03:59.2]} 32. c4
{[%clk 0:07:08.6]} 32... Kg4 {[%clk 0:03:55.7]} 33. Kc2 {[%clk 0:06:54]} 33...
Rd4 {[%clk 0:03:50.5]} 34. Kc3 {[%clk 0:06:33.6]} 34... Nf5 {[%clk 0:03:50.6]}
35. Re1 {[%clk 0:06:32]} 35... Kf3 {[%clk 0:03:14.1]} 36. Ra1 {[%clk 0:06:06.3]}
36... Rd8 {[%clk 0:01:24.4]} 37. Ra7 {[%clk 0:05:32.6]} 37... Rb8 {[%clk
0:01:25]} 38. Bg5 {[%clk 0:05:25.9]} 38... Nxg3 {[%clk 0:01:14.3]} 39. c6 {[%clk
0:04:34.1]} 39... bxc6 {[%clk 0:01:13.9]} 40. bxc6 {[%clk 0:04:33.7]} 40... Rc8
{[%clk 0:01:14.7]} 41. Kd4 {[%clk 0:04:31.4]} 41... Nf5+ {[%clk 0:01:01.7]} 42.
Kc5 {[%clk 0:04:31.9]} 42... Ke4 {[%clk 0:01:02.9]} 43. Ra1 {[%clk 0:04:28.2]}
43... Ng3 {[%clk 0:00:46.3]} 44. Rd1 {[%clk 0:04:26]} 44... Kf5 {[%clk
0:00:43.4]} 45. Bd8 {[%clk 0:04:25.2]} 45... Ne4+ {[%clk 0:00:40.3]} 46. Kb4
{[%clk 0:04:17.5]} 46... Kxe5 {[%clk 0:00:36.6]} 47. Rd7 {[%clk 0:04:14.7]}
47... Nf6 {[%clk 0:00:34.5]} 48. Bxc7+ {[%clk 0:04:13.9]} 1-0

[Event "GrandPrix_30.05"]
[Site "Chess.com"]
[Date "2020.05.30"]
[Round "4"]
[White "Spartakus1975"]
[Black "Haykos"]
[Result "0-1"]
[WhiteElo "2475"]
[BlackElo "2263"]
[TimeControl "600+2"]
[EndTime "9:51:11 PDT"]
[Termination "Haykos won by resignation"]

1. e4 {[%clk 0:10:01.9]} 1... c5 {[%clk 0:09:49.4]} 2. c3 {[%clk 0:09:59.2]}
2... d5 {[%clk 0:09:46.1]} 3. exd5 {[%clk 0:09:58.1]} 3... Qxd5 {[%clk
0:09:46.5]} 4. d4 {[%clk 0:09:59.2]} 4... Nf6 {[%clk 0:09:28.5]} 5. Nf3 {[%clk
0:09:59.7]} 5... e6 {[%clk 0:09:29.4]} 6. Na3 {[%clk 0:09:53]} 6... Nc6 {[%clk
0:09:13.4]} 7. Be3 {[%clk 0:09:49.1]} 7... cxd4 {[%clk 0:09:10.8]} 8. Nb5 {[%clk
0:09:47.4]} 8... Qd8 {[%clk 0:09:09.6]} 9. Nbxd4 {[%clk 0:09:29]} 9... Bd7
{[%clk 0:09:07.5]} 10. Nxc6 {[%clk 0:09:15.4]} 10... Bxc6 {[%clk 0:09:07.2]} 11.
Ne5 {[%clk 0:09:16.2]} 11... Qc7 {[%clk 0:08:21.3]} 12. Nxc6 {[%clk 0:09:13.8]}
12... bxc6 {[%clk 0:08:08.6]} 13. Bd3 {[%clk 0:08:42.8]} 13... Bd6 {[%clk
0:08:00.7]} 14. g3 {[%clk 0:08:38.3]} 14... O-O {[%clk 0:07:54.3]} 15. O-O
{[%clk 0:08:29.8]} 15... Rfd8 {[%clk 0:07:38.6]} 16. Qc2 {[%clk 0:08:27.3]}
16... h6 {[%clk 0:07:24.6]} 17. Rad1 {[%clk 0:08:26.2]} 17... a5 {[%clk
0:06:46.2]} 18. Rfe1 {[%clk 0:08:13.1]} 18... Nd5 {[%clk 0:06:42.9]} 19. Bc1
{[%clk 0:08:11.9]} 19... a4 {[%clk 0:06:42.8]} 20. Be4 {[%clk 0:08:05.2]} 20...
Bc5 {[%clk 0:06:24]} 21. Kg2 {[%clk 0:07:44.3]} 21... Qb6 {[%clk 0:05:49.3]} 22.
Bf3 {[%clk 0:07:38.5]} 22... a3 {[%clk 0:05:04.4]} 23. b4 {[%clk 0:07:13.2]}
23... Be7 {[%clk 0:04:56.7]} 24. Qb3 {[%clk 0:07:11]} 24... Bf6 {[%clk
0:04:49.4]} 25. Bd2 {[%clk 0:06:54]} 25... c5 {[%clk 0:04:17.6]} 26. c4 {[%clk
0:06:50.2]} 26... Nxb4 {[%clk 0:04:16.1]} 27. Bxa8 {[%clk 0:06:49.8]} 27... Rxa8
{[%clk 0:04:17.8]} 28. Be3 {[%clk 0:06:36.5]} 28... Qa7 {[%clk 0:04:07.8]} 29.
Rd2 {[%clk 0:05:23.4]} 29... Rb8 {[%clk 0:04:06.1]} 30. Rb1 {[%clk 0:04:48.1]}
30... Nc6 {[%clk 0:03:44.8]} 31. Qd1 {[%clk 0:04:47.9]} 31... Rb2 {[%clk
0:03:43.7]} 32. Kg1 {[%clk 0:04:21.5]} 32... Qb7 {[%clk 0:03:38.5]} 33. Rc1
{[%clk 0:04:19.1]} 33... Ne5 {[%clk 0:03:29.2]} 34. Rd6 {[%clk 0:03:40.8]} 34...
Nf3+ {[%clk 0:03:24.3]} 35. Kf1 {[%clk 0:03:38.7]} 35... Nxh2+ {[%clk
0:03:23.1]} 36. Kg1 {[%clk 0:03:39.7]} 36... Nf3+ {[%clk 0:03:22.3]} 37. Kf1
{[%clk 0:03:40.4]} 37... Nd4 {[%clk 0:03:22.6]} 38. Kg1 {[%clk 0:03:23.4]} 38...
Ne2+ {[%clk 0:03:20.7]} 39. Kh2 {[%clk 0:03:24.3]} 39... Nxc1 {[%clk 0:03:20.3]}
40. Qxc1 {[%clk 0:03:21.9]} 40... Rb1 {[%clk 0:03:18.7]} 41. Rd7 {[%clk
0:03:19]} 41... Qe4 {[%clk 0:02:32.6]} 42. f3 {[%clk 0:02:49.8]} 42... Rb2+
{[%clk 0:02:22.1]} 43. Bd2 {[%clk 0:02:42.2]} 43... Qxf3 {[%clk 0:02:20.4]} 44.
Qe1 {[%clk 0:02:24.2]} 44... Rxa2 {[%clk 0:02:01.6]} 45. Rc7 {[%clk 0:02:18]}
45... Ra1 {[%clk 0:01:59.5]} 0-1

[Event "GrandPrix_30.05"]
[Site "Chess.com"]
[Date "2020.05.30"]
[Round "4"]
[White "jacky72"]
[Black "Kiril1965"]
[Result "1-0"]
[WhiteElo "2334"]
[BlackElo "2491"]
[TimeControl "600+2"]
[EndTime "9:51:20 PDT"]
[Termination "jacky72 won by resignation"]

1. d4 {[%clk 0:10:01.9]} 1... Nf6 {[%clk 0:08:36.3]} 2. c4 {[%clk 0:10:01.4]}
2... e6 {[%clk 0:08:29]} 3. Nf3 {[%clk 0:10:01.8]} 3... b6 {[%clk 0:08:25.8]} 4.
g3 {[%clk 0:10:02.6]} 4... Ba6 {[%clk 0:08:23.2]} 5. Qc2 {[%clk 0:10:02.2]} 5...
b5 {[%clk 0:08:18.5]} 6. cxb5 {[%clk 0:09:45.1]} 6... Bxb5 {[%clk 0:08:17]} 7.
Bg2 {[%clk 0:09:47]} 7... d5 {[%clk 0:08:12.8]} 8. O-O {[%clk 0:09:45.2]} 8...
c6 {[%clk 0:07:43.2]} 9. Ne5 {[%clk 0:09:22.2]} 9... Nfd7 {[%clk 0:07:29.1]} 10.
a4 {[%clk 0:09:15.6]} 10... Ba6 {[%clk 0:07:24.9]} 11. Bf4 {[%clk 0:08:41.2]}
11... Qb6 {[%clk 0:06:59.6]} 12. a5 {[%clk 0:07:57.7]} 12... Qb7 {[%clk
0:06:35.6]} 13. Rc1 {[%clk 0:07:46.4]} 13... c5 {[%clk 0:06:02.6]} 14. e4 {[%clk
0:07:22.6]} 14... Nxe5 {[%clk 0:05:45.7]} 15. Bxe5 {[%clk 0:07:09.5]} 15... Nc6
{[%clk 0:05:38.1]} 16. exd5 {[%clk 0:07:03.2]} 16... Nb4 {[%clk 0:04:43.6]} 17.
dxe6 {[%clk 0:05:48.6]} 17... Qxg2+ {[%clk 0:03:32]} 18. Kxg2 {[%clk 0:05:48.2]}
18... Nxc2 {[%clk 0:03:32.2]} 19. Rxc2 {[%clk 0:05:39.8]} 19... f6 {[%clk
0:03:25.8]} 20. Bf4 {[%clk 0:05:28.1]} 20... cxd4 {[%clk 0:03:26.4]} 21. Na3
{[%clk 0:05:21.4]} 21... Bb4 {[%clk 0:03:15.6]} 22. Rc7 {[%clk 0:04:52.2]} 22...
O-O {[%clk 0:03:14.9]} 23. Nc2 {[%clk 0:04:49.3]} 23... Rfb8 {[%clk 0:02:47.8]}
24. Nxd4 {[%clk 0:04:36.2]} 24... Rb7 {[%clk 0:02:41.5]} 25. Rc6 {[%clk
0:04:14.7]} 25... Bd3 {[%clk 0:02:39.2]} 26. f3 {[%clk 0:04:14.9]} 26... Bf8
{[%clk 0:02:36.6]} 27. b3 {[%clk 0:04:07.2]} 27... Rd8 {[%clk 0:02:35.4]} 28.
Be3 {[%clk 0:03:56.8]} 28... a6 {[%clk 0:02:24]} 29. Rac1 {[%clk 0:03:43.2]}
29... Rbb8 {[%clk 0:02:13.8]} 30. Rc7 {[%clk 0:03:26.9]} 30... Re8 {[%clk
0:02:08.9]} 31. Nc6 {[%clk 0:02:55.6]} 31... Ba3 {[%clk 0:02:02.2]} 32. Rc3
{[%clk 0:02:43.4]} 32... Bd6 {[%clk 0:01:39.3]} 33. Rd7 {[%clk 0:02:34.4]} 33...
Bb5 {[%clk 0:01:28.1]} 34. Rxd6 {[%clk 0:02:30.1]} 34... Bxc6 {[%clk 0:01:28.7]}
35. Rdxc6 {[%clk 0:02:26.4]} 35... h5 {[%clk 0:01:24.4]} 36. Bb6 {[%clk
0:02:20.1]} 36... Kh7 {[%clk 0:01:24.5]} 37. f4 {[%clk 0:02:19]} 37... Kg6
{[%clk 0:01:23.3]} 38. R3c5 {[%clk 0:02:16.1]} 38... Rb7 {[%clk 0:01:22.3]} 39.
f5+ {[%clk 0:02:16.1]} 39... Kg5 {[%clk 0:01:23.2]} 40. h4+ {[%clk 0:02:16.2]}
40... Kh6 {[%clk 0:01:22.3]} 41. Rc8 {[%clk 0:02:13.9]} 1-0